Workbook

Sheet Introduction
B3: LEED® CHP Calculator Version 1.0
B5: INTRODUCTION AND PURPOSE The LEED® CHP Calculator is a tool to help LEED® project teams estimate the energy cost savings and “Optimize Energy Performance” points* a building meeting the requirements of ASHRAE 90.1 (2007 or 2010, depending on the LEED rating system) [known as the "Baseline Building"] can achieve with CHP. The Calculator is intended to be used at the very early stages of building design so that CHP is given consideration as an energy option. When using the calculator, please note the following: - An important functional issue for the calculator is the use of macros to perform calculations and move the user through the calculator. Please make sure macros are enabled before using the calculator. - Instructions and notes accompany each field in the calculator. In addition, there is a separate documentation file linked from each worksheet in the calculator that provides further information, references, descriptions, and assumptions. - The calculator is designed for users with at least a moderate understanding of CHP technology and its terminology. If you would like to learn more about CHP technologies, please visit: www.epa.gov/chp. - The calculator assumes that the only energy efficiency measure implemented by the Baseline Building beyond the ASHRAE requirements is CHP. - Estimates of energy cost savings and "Optimize Energy Performance" points earned with CHP are determined in accordance with USGBC's, Methodology for Modeling Combined Heat & Power for EAp2/c1 in LEED® 2009, available at: http://www.usgbc.org/resources/methodology-modeling-combined-heat-amp-power-eap2c1-leed-2009.
B7: SECTIONS
B9: There are four worksheets of the calculator: 1) Inputs. On the Inputs worksheet, users characterize the Baseline Building and a potential CHP project by completing each of the 8 numbered subsections. Some questions have a default option. 2) Results. The Results worksheet summarizes the building's energy use, the CHP system selected by the calculator to meet the building's energy needs, and presents an estimate of the number of "Optimize Energy Performance" points the Baseline Building can achieve with the use of CHP. 3) CHP Technology Options. The CHP Technology Options worksheet contains the performance characteristics of various CHP systems. As the basis for estimating energy costs, the calculator selects one of these CHP systems based on the inputs entered by the user. 4) State Energy Prices. The State Energy Prices worksheet lists the average commercial electric and gas prices by state used by the calculator.
B11: COMBINED HEAT AND POWER - CHP is an integrated system of power production that harvests the heat generated during the production of electricity and utilizes that heat, which would otherwise be wasted, to efficiently produce steam or hot water. - Consequently, CHP reduces the cost and emissions associated with grid-supplied electricty and producing thermal energy in an on-site furnace or boiler. - The electricity generated by the CHP system on site reduces purchases of grid-supplied electricity, increases on-site fuel consumption and maintenance costs, and requires a capital investment. The annual operating savings from CHP is the difference between avoided electricity purchases and incremental fuel and maintenance costs.
B13: ENVIRONMENTAL BENEFITS OF CHP EPA promotes greater use of CHP because significant cost-effective emissions reductions can be achieved by increasing the efficiency of the nation's energy supply. CHP systems achieve overall efficiencies of 60 to 80 percent, compared to separate heat and power generation with an average efficiency of 45 percent in the United States. This improvement in efficiency reduces fossil fuel use and emissions of carbon dioxide and other air pollutants. Furthermore, when used for onsite electricity generation, CHP avoids transmission and distribution losses that occur when distributing centrally generated power, resulting in further efficiency gains. For more information on CHP technologies, qualities of a good CHP candidate sites, emissions and fuel savings benefits, and funding opportunities, visit the Combined Heat and Power Partnership website at: http://www.epa.gov/chp.
B15: HELP US IMPROVE THE LEED CHP CALCULATOR We welcome your input on the LEED® CHP Calculator's usability and functionality as we strive to ensure its effectiveness. We would also like to know if you encounter any issues when using the tool. Please send us comments or questions via phone or e-mail to the CHP help line at: 703-373-8108 or chp@epa.gov.
B17: NOTE: Please note that the results generated by the calculator are intended for educational and outreach purposes only; it is not designed for use in feasibility studies or to make investment-grade decisions. All results achieved through the independent use of the calculator are subject to input error and therefore are not endorsed by the EPA CHP Partnership. If the results of the calculator indicate that a potential CHP project looks favorable, users may wish to contact the CHP Partnership help line at 703-373-8108 or chp@epa.gov to determine if additional technical assistance may be useful in considering whether to move forward with investigating its feasibility. Please note that project-specific assistance is available for organizations belonging to the CHP Partnership. Details on becoming a partner are available at: http://www.epa.gov/chp/aboutus/how-to-join.html.
B20: * "Optimize Energy Performance" is a point category under the Energy & Atmosphere category in the LEED® for Building Design and Construction: New Construction and Major Renovations rating system (LEED® BD+C: New Construction). Under LEED® v2009, it is referred to as credit EAc1. Under LEED® v4, it is simply referred to by its name ("Optimize Energy Performance"). Langauge for the "Optimize Energy Performance" credit can be found at: http://www.usgbc.org/node/1731022?return=/credits/new-construction/v2009/energy-%26-atmosphere (LEED® v2009) and http://www.usgbc.org/node/2614273?return=/credits/new-construction/v4/energy-%26-atmosphere (LEED® v4).

Sheet Inputs
B1: LEED® CHP Calculator Version 1.0
E2: **The "Baseline Building" is the building that meets the requirements of ASHRAE 90.1 (2007 or 2010, depending on the LEED® rating system)
E4: Instructions
B5: 1. In what state is the Baseline Building located? | E5: Click on the input cell and use the drop down list to select the state in which the Baseline Building is located.
B7: 2. What is the average monthly electric demand (kWh/month) for the Baseline Building? | E7: Enter the Baseline Building’s average monthly electric demand (kWh/month).
B9: 3. What is the average monthly heating demand (MMBtu/month) for the Baseline Building? | E9: Enter the Baseline Building’s average monthly heating demand (in MMBtu/month). The Calculator considers heating demands only (CHP can provide cooling as well, and if this is your primary thermal need, please contact the CHPP helpline at 703-373-8108 or chp@epa.gov for additional assistance ).
B11: 4. How many hours per year will the Baseline Building operate? | C11: 3 | E11: Enter the annual operating hours of the Baseline Building or choose from one of the hourly operating schedules in the drop-down list .
B14: 5. What is the fuel price ($/MMBtu) used to produce heat? | E14: Enter the cost in $/MMBtu of fuel used to produce heat for the Baseline Building (when CHP is not used). If unsure of the fuel cost, the default button will supply the average of the industrial and commercial gas prices for the state you selected in Question 1.
B17: 6. What is the CHP fuel price ($/MMBtu)? | E17: In many cases the CHP fuel price ($/MMBtu) will be the same as the fuel price selected in Question 5. However, in certain states, fuel for CHP systems is provided at a special rate. If your state or utility offers a discounted CHP fuel price, enter it here, otherwise enter the same fuel price used in Question 5.
B19: 7. What is the total price of electricity ($/kWh) purchased from the utility? | E19: Enter the total price of electricity the Baseline Building will pay in $/kWh (inclusive of demand charges and all other charges). If this value is not known, select the default button to use the commercial average retail electric price for the state you selected in Question 1.
B21: 8. What is the efficiency (%) of thermal equipment? (typically 75-82%) | E21: Enter the efficiency of the equipment that will provide thermal energy to the Baseline Building (either when CHP is not used or if supplemental heat is needed). This can be boilers producing hot water, for example. The efficiency of thermal equipment is typically between 75 and 82 percent. If this value is not known, select the default button to use the default value of 80 percent.

Sheet Results
A4: LEED® CHP Calculator Version 1.0
A11: Baseline Building Energy Use*
B13: Building Average Electric Demand, kW | C13: =IF(OpHours=0,0,ElecUse/OpHours*12) -> 0 | D13: The Baseline Building electric demand based on the monthly electric use and hours of operation specified on the Inputs page
B14: Building Average Heating Demand, MMBtu/hour | C14: =IF(OpHours=0,0,ThermalUse/OpHours*12) -> 0 | D14: The Baseline Building hourly heating load based on the heating load specified on the Inputs page
A16: * See the LEED® CHP Calculator Results section in the Documentation for more information.
A18: CHP System Information*
B20: CHP System Type | C20: =CHPSysTypeDef -> No CHP | D20: The CHP system type identified by the calculator to best meet the energy needs of the Baseline Building
B21: CHP System Capacity, kW | C21: =MIN(HLOOKUP(BaseThermalUse,'CHP Technology Options'!$C$3:$P$4,2)*BaseThermalUse*1000000/3413,BaseElecDemand) -> 0 | D21: The CHP system size identified by the calculator to best meet the energy needs of the Baseline Building. In the absence of a load profile that shows the Baseline Building’s electric and thermal demands over time, the CHP system is sized using average building electric and heating demands.
B22: CHP Electric Efficiency | C22: =ElecEffDef -> No CHP | D22: The electric efficiency of the specified CHP system
B23: CHP Heat Output, Btu/kWh | C23: =CHPThermOutputDef -> No CHP | D23: The thermal output of the CHP system on a Btu/kWh basis
B24: CHP Heat Output, MMBtu/hour | C24: =IF(CHPSize<30,"No CHP",C23*CHPSize/1000000) -> No CHP | D24: The thermal output of the CHP system on an MMBtu/hr basis
B25: CHP System Fuel Cost (Natural Gas), $/MMBtu | C25: =CHPFuelPrice -> 0 | D25: The price of fuel for the CHP system
B26: CHP O&M Cost, cents/kWh | C26: =OandMCostsDef -> No CHP | D26: The non-fuel operating and maintenance cost of the CHP system in $/kWh. Note: O&M charges are not included in the annual energy cost calculations presented below since the "Optimize Energy Performance" credit calculations only include the cost of purchased utility electricity and fuel required for the CHP system and other on-site thermal needs.
A28: * See the LEED® CHP Calculator Results section in the Documentation for more information.
A30: Estimate of Annual Energy Costs of the Baseline Building with and without CHP
C32: Baseline Building: No CHP | D32: Baseline Building: With CHP | E32: Difference
B33: Energy Use
B34: Annual Electricity Use
B35: Annual Purchased Power, kWh | C35: =ElecUse*12 -> 0 | D35: =IF(CHPSysTypeDef="No CHP","No CHP",IF(C35-D36<0,0,C35-D36)) -> No CHP | E35: =IF(CHPSysTypeDef="No CHP","No CHP",D35-C35) -> No CHP
B36: Annual CHP Power Generation, kWh | C36: 0 | D36: =IF(CHPSysTypeDef="No CHP","No CHP",CHPSize*CHPAvailabilityDef*OpHours) -> No CHP | E36: =IF(CHPSysTypeDef="No CHP","No CHP",D36-C36) -> No CHP
B37: Total Annual Electricity Use, kWh | C37: =SUM(C35:C36) -> 0 | D37: =SUM(D35:D36) -> 0 | E37: =IF(CHPSysTypeDef="No CHP","No CHP",D37-C37) -> No CHP
B38: Annual Thermal Energy Use
B39: Non-CHP Thermal Use*, MMBtu/yr | C39: =BaseThermalUse*OpHours -> 0 | D39: =IF(CHPSysTypeDef="No CHP","No CHP",IF(D40>C39,0,C39-D40)) -> No CHP | E39: =IF(CHPSysTypeDef="No CHP","No CHP",D39-C39) -> No CHP
B40: CHP Thermal Used, MMBtu/yr | C40: 0 | D40: =IF(CHPSysTypeDef="No CHP","No CHP",IF(CHPThermOutputDef*CHPThermUtilDefault*D36/1000000>C39,C39,CHPThermOutputDef*CHPThermUtilDefault*D36/1000000)) -> No CHP | E40: =IF(CHPSysTypeDef="No CHP","No CHP",D40-C40) -> No CHP
B41: Total Thermal Energy Use, MMBtu/yr | C41: =C39 -> 0 | D41: =IF(CHPSysTypeDef="No CHP","No CHP",D39+D40) -> No CHP | E41: =IF(CHPSysTypeDef="No CHP","No CHP",D41-C41) -> No CHP
B42: Annual Fuel Use
B43: Non-CHP Thermal Fuel Use*, MMBtu/yr | C43: =C39/SiteBoilerEff ->  | D43: =IF(CHPSysTypeDef="No CHP","No CHP",D39/SiteBoilerEff) -> No CHP | E43: =IF(CHPSysTypeDef="No CHP","No CHP",D43-C43) -> No CHP
B44: CHP Fuel Use, MMBtu/yr | C44: 0 | D44: =IF(CHPSysTypeDef="No CHP","No CHP",D36*CHPHeatRateDef/1000000) -> No CHP | E44: =IF(CHPSysTypeDef="No CHP","No CHP",D44-C44) -> No CHP
B45: Annual Total Fuel Use, MMBtu | C45: =C43 ->  | D45: =IF(CHPSysTypeDef="No CHP","No CHP",D43+D44) -> No CHP | E45: =IF(CHPSysTypeDef="No CHP","No CHP",D45-C45) -> No CHP
B47: Energy Costs
B48: Purchased Electricity | C48: =C35*AvgElecPrice -> 0 | D48: =IF(CHPSysTypeDef="No CHP","No CHP",C48*(1-ElecAvoidedDefault)+D35*AvgElecPrice*ElecAvoidedDefault) -> No CHP | E48: =IF(CHPSysTypeDef="No CHP","No CHP",D48-C48) -> No CHP
B49: Purchased Fuel | C49: =C45*BoilerFuelPrice ->  | D49: =IF(CHPSysTypeDef="No CHP","No CHP",D45*CHPFuelPrice) -> No CHP | E49: =IF(CHPSysTypeDef="No CHP","No CHP",D49-C49) -> No CHP
B50: Annual Energy Costs | C50: =SUM(C48:C49) ->  | D50: =IF(CHPSysTypeDef="No CHP","No CHP",SUM(D48:D49)) -> No CHP | E50: =IF(CHPSysTypeDef="No CHP","No CHP",D50-C50) -> No CHP
B52: Energy Cost Savings | E52: =IF(E50="No CHP", "No CHP",-E50) -> No CHP
E53: =(C50-D50)/C50 -> 
B54: * Non-CHP Thermal Use is from on-site boilers or heaters that are not part of the CHP system. The CHP system is assumed to have a 95% availability, so an auxiliary boiler would be used when the CHP system is down for maintenance, or for times when the site thermal demand exceeds the thermal output of the CHP system.
A58: Estimated “Optimize Energy Performance” Points Earned with CHP
C60: Energy Cost Savings | E60: Points Earned with CHP
B61: LEED® v2009 | C61: =AnOpSavings -> No CHP | D61: =E53 ->  | E61: =VLOOKUP(D61,B68:D92,2) -> 
B62: LEED® v4 | C62: =AnOpSavings -> No CHP | D62: =E53 ->  | E62: =VLOOKUP(D62,B68:D92,3) -> 
A64: “Optimize Energy Performance” Points for Energy Cost Savings
B66: Energy Cost Savings | C66: Points
C67: LEED® v2009 | D67: LEED® v4
B68: 0.06 | C68: 0 | D68: 1
B69: 0.08 | C69: 0 | D69: 2
B70: 0.1 | C70: 0 | D70: 3
B71: 0.12 | C71: 1 | D71: 4
B72: 0.14 | C72: 2 | D72: 5
B73: 0.16 | C73: 3 | D73: 6
B74: 0.18 | C74: 4 | D74: 7
B75: 0.2 | C75: 5 | D75: 8
B76: 0.22 | C76: 6 | D76: 9
B77: 0.24 | C77: 7 | D77: 10
B78: 0.26 | C78: 8 | D78: 11
B79: 0.28 | C79: 9 | D79: 11
B80: 0.29 | C80: 9 | D80: 12
B81: 0.3 | C81: 10 | D81: 12
B82: 0.32 | C82: 11 | D82: 13
B83: 0.34 | C83: 12 | D83: 13
B84: 0.35 | C84: 12 | D84: 14
B85: 0.36 | C85: 13 | D85: 14
B86: 0.38 | C86: 14 | D86: 15
B87: 0.4 | C87: 15 | D87: 15
B88: 0.42 | C88: 16 | D88: 16
B89: 0.44 | C89: 17 | D89: 16
B90: 0.46 | C90: 18 | D90: 17
B91: 0.48 | C91: 19 | D91: 17
B92: 0.5 | C92: 19 | D92: 18
A95: The results generated by this calculator are intended for educational and outreach purposes only;
A96: they are not intended to replace the economic calculations in a Level 1 CHP feasibility analysis.

Sheet CHP Technology Options
B1: System | C1: No CHP | D1: 30 kW Microturbine | E1: 50 kW RE | F1: 65 kW Microturbine | G1: 75 kW RE | H1: 100 kW RE | I1: 200 kW Microturbine | J1: 334 kW RE | K1: 500 kW RE | L1: 633 kW RE | M1: 1,121 kW RE | N1: 2,000 kW RE | O1: 3,326 kW RE | P1: 7,038 kW GT
B2: Electric Capacity, kW | C2: 0 | D2: 30 | E2: 50 | F2: 65 | G2: 75 | H2: 100 | I2: 200 | J2: 334 | K2: 500 | L2: 633 | M2: 1121 | N2: 2000 | O2: 3326 | P2: 7038
B3: Heat Output, MMBtu/hour | C3: 0 | D3: =D2*D8/1000000 -> 0.22251 | E3: 0.305 | F3: 0.43485 | G3: 0.522975 | H3: 0.669 | I3: 0.9264 | J3: 2.020032 | K3: 2.1595 | L3: 2.768742 | M3: 4.297914 | N3: 7.036 | O3: 10.706394 | P3: 34.303212
B4: Power to Heat Ratio | C4: 0.56 | D4: 0.46 | E4: =3413/E8 -> 0.5595081967 | F4: 0.51 | G4: 0.49 | H4: 0.51 | I4: 0.74 | J4: 0.57 | K4: =3413/K8 -> 0.7902292197 | L4: 0.78 | M4: 0.89 | N4: =3413/N8 -> 0.9701534963 | O4: 1.06 | P4: 0.7
B5: Technology | C5: No CHP | D5: Microturbine | E5: Recip Engine | F5: Microturbine | G5: Recip Engine | H5: Recip Engine | I5: Microturbine | J5: Recip Engine | K5: Recip Engine | L5: Recip Engine | M5: Recip Engine | N5: Recip Engine | O5: Recip Engine | P5: Gas Turbine
B6: Capacity, kW | C6: No CHP | D6: 30 | E6: 50 | F6: 65 | G6: 75 | H6: 100 | I6: 200 | J6: 334 | K6: 500 | L6: 633 | M6: 1121 | N6: 2000 | O6: 3326 | P6: 7038
B7: Heat Rate, Btu/kWh (HHV) | C7: No CHP | D7: 15500 | E7: 12000 | F7: 14361 | G7: 13128 | H7: 12637 | I7: 12795 | J7: 11546 | K7: 9760 | L7: 9896 | M7: 9264 | N7: 9492 | O7: 8454 | P7: 11807
B8: Heat Output, Btu/kWh | C8: No CHP | D8: 7417 | E8: =610000/100 -> 6100 | F8: 6690 | G8: 6973 | H8: 6690 | I8: 4632 | J8: 6048 | K8: 4319 | L8: 4374 | M8: 3834 | N8: 3518 | O8: 3219 | P8: 4874
B9: Electric Efficiency, % (HHV) | C9: No CHP | D9: 0.22 | E9: =3412/E7 -> 0.2843333333 | F9: 0.238 | G9: 0.26 | H9: 0.27 | I9: 0.267 | J9: 0.296 | K9: 0.3495901639 | L9: 0.345 | M9: 0.368 | N9: 0.3594605984 | O9: 0.404 | P9: 0.2889811129
B10: O&M Costs, $/kWh | C10: No CHP | D10: 0.013 | E10: 0.02 | F10: 0.013 | G10: 0.02 | H10: 0.024 | I10: 0.012 | J10: 0.03 | K10: 0.016 | L10: 0.021 | M10: 0.019 | N10: 0.014 | O10: 0.016 | P10: 0.0123
B11: Availability | C11: No CHP | D11: 0.95 | E11: 0.95 | F11: 0.95 | G11: 0.95 | H11: 0.95 | I11: 0.95 | J11: 0.95 | K11: 0.95 | L11: 0.95 | M11: 0.95 | N11: 0.95 | O11: 0.95 | P11: 0.95
B12: Power to Heat Ratio | C12: No CHP | D12: 0.46 | E12: =3413/E8 -> 0.5595081967 | F12: 0.51 | G12: 0.49 | H12: 0.51 | I12: 0.74 | J12: 0.57 | K12: =3413/K8 -> 0.7902292197 | L12: 0.78 | M12: 0.89 | N12: =3413/N8 -> 0.9701534963 | O12: 1.06 | P12: 0.7

Sheet State Energy Prices
B1: Average Retail Commercial Electric and Gas Prices
B3: Average Commercial Price by State
B4: State | C4: Electric Price $/kWh* | D4: Average Commercial Gas Price, $/MMBtu** | E4: Average Industrial Gas Price, $/MMBtu*** | F4: Average Industrial/Commercial Gas Price, $/MMBtu
B5: Alabama | C5: 0.1051439 | D5: 11.56614786 | E5: 5.282101167 | F5: =AVERAGE(D5:E5) -> 8.424124514
B6: Alaska | C6: 0.15579897 | D6: 8.112840467 | E6: 7.752918288 | F6: =AVERAGE(D6:E6) -> 7.932879377
B7: Arizona | C7: 0.098471208 | D7: 8.521400778 | E7: 7.33463035 | F7: 7.928015564
B8: Arkansas | C8: 0.080460967 | D8: 7.626459144 | E8: 6.789883268 | F8: 7.208171206
B9: California | C9: 0.14222761 | D9: 8.832684825 | E9: 7.519455253 | F9: 8.176070039
B10: Colorado | C10: 0.098617559 | D10: 7.908560311 | E10: 5.739299611 | F10: 6.823929961
B11: Connecticut | C11: 0.1463379 | D11: 10 | E11: 7.850194553 | F11: 8.925097276
B12: Delaware | C12: 0.10195582 | D12: 11.10894942 | E12: 10.68093385 | F12: 10.89494163
B13: District of Columbia | C13: 0.11941303 | D13: 11.3229572 | E13: 11.32 | F13: 11.3214786
B14: Florida | C14: 0.093911129 | D14: 11.19649805 | E14: 7.052529183 | F14: 9.124513619
B15: Georgia | C15: 0.099865665 | D15: 9.455252918 | E15: 6.031128405 | F15: 7.743190661
B16: Hawaii | C16: 0.34053595 | D16: 39.28015564 | E16: 26.02140078 | F16: 32.65077821
B17: Idaho | C17: 0.073662036 | D17: 7.597276265 | E17: 5.807392996 | F17: 6.70233463
B18: Illinois | C18: 0.081445623 | D18: 7.36381323 | E18: 7.723735409 | F18: 7.543774319
B19: Indiana | C19: 0.09600227 | D19: 8.005836576 | E19: 6.361867704 | F19: 7.18385214
B20: Iowa | C20: 0.084395356 | D20: 7.928015564 | E20: 5.282101167 | F20: 6.605058366
B21: Kansas | C21: 0.096788638 | D21: 9.289883268 | E21: 5.544747082 | F21: 7.417315175
B22: Kentucky | C22: 0.085602147 | D22: 8.813229572 | E22: 5.671206226 | F22: 7.242217899
B23: Louisiana | C23: 0.089633233 | D23: 8.754863813 | E23: 4.571984436 | F23: 6.663424125
B24: Maine | C24: 0.11740727 | D24: 12.44163424 | E24: 10.03891051 | F24: 11.24027237
B25: Maryland | C25: 0.10684338 | D25: 10.15564202 | E25: 8.239299611 | F25: 9.197470817
B26: Massachusetts | C26: 0.14234822 | D26: 11.92607004 | E26: 10.94357977 | F26: 11.4348249
B27: Michigan | C27: 0.11063812 | D27: 8.025291829 | E27: 7.431906615 | F27: 7.728599222
B28: Minnesota | C28: 0.094213032 | D28: 6.673151751 | E28: 6.254863813 | F28: 6.464007782
B29: Mississippi | C29: 0.1010102 | D29: 8.13229572 | E29: 5.661478599 | F29: 6.89688716
B30: Missouri | C30: 0.088043163 | D30: 8.706225681 | E30: 8.239299611 | F30: 8.472762646
B31: Montana | C31: 0.09535649 | D31: 8.793774319 | E31: 7.811284047 | F31: 8.302529183
B32: Nebraska | C32: 0.086018199 | D32: 6.313229572 | E32: 5.593385214 | F32: 5.953307393
B33: Nevada | C33: 0.090145345 | D33: 6.429961089 | E33: 7.616731518 | F33: 7.023346304
B34: New Hampshire | C34: 0.13520844 | D34: 11.79961089 | E34: 10.38910506 | F34: 11.09435798
B35: New Jersey | C35: 0.12774258 | D35: 9.824902724 | E35: 7.96692607 | F35: 8.895914397
B36: New Mexico | C36: 0.097407588 | D36: 7.568093385 | E36: 6.206225681 | F36: 6.887159533
B37: New York | C37: 0.15354075 | D37: 8.093385214 | E37: 7.8307393 | F37: 7.962062257
B38: North Carolina | C38: 0.087573333 | D38: 8.832684825 | E38: 7.237354086 | F38: 8.035019455
B39: North Dakota | C39: 0.083887292 | D39: 7.461089494 | E39: 4.027237354 | F39: 5.744163424
B40: Ohio | C40: 0.093486228 | D40: 6.031128405 | E40: 5.972762646 | F40: 6.001945525
B41: Oklahoma | C41: 0.077669182 | D41: 7.986381323 | E41: 6.964980545 | F41: 7.475680934
B42: Oregon | C42: 0.086802915 | D42: 8.365758755 | E42: 5.63229572 | F42: 6.999027237
B43: Pennsylvania | C43: 0.092499221 | D43: 9.873540856 | E43: 8.959143969 | F43: 9.416342412
B44: Rhode Island | C44: 0.12917541 | D44: 12.53891051 | E44: 9.86381323 | F44: 11.20136187
B45: South Carolina | C45: 0.098772047 | D45: 9.289883268 | E45: 5.943579767 | F45: 7.616731518
B46: South Dakota | C46: 0.085124688 | D46: 7.548638132 | E46: 6.926070039 | F46: 7.237354086
B47: Tennessee | C47: 0.099979154 | D47: 9.163424125 | E47: 6.215953307 | F47: 7.689688716
B48: Texas | C48: 0.080172732 | D48: 7.918287938 | E48: 4.581712062 | F48: 6.25
B49: Utah | C49: 0.083178211 | D49: 7.5 | E49: 5.612840467 | F49: 6.556420233
B50: Vermont | C50: 0.14661341 | D50: 8.968871595 | E50: 6.215953307 | F50: 7.592412451
B51: Virginia | C51: 0.080002488 | D51: 8.910505837 | E51: 5.856031128 | F51: 7.383268482
B52: Washington | C52: 0.077791991 | D52: 8.803501946 | E52: 8.287937743 | F52: 8.545719844
B53: West Virginia | C53: 0.081666454 | D53: 8.608949416 | E53: 4.387159533 | F53: 6.498054475
B54: Wisconsin | C54: 0.10744973 | D54: 6.877431907 | E54: 7.850194553 | F54: 7.36381323
B55: Wyoming | C55: 0.085700477 | D55: 7.548638132 | E55: 4.494163424 | F55: 6.021400778
B57: * EIA Average Retail Price of Electricity for Commercial Customers (2013). http://www.eia.gov/electricity/sales_revenue_price/pdf/table4.pdf. EIA prices expressed in cents/kWh. Prices here converted to $/kWh.
B58: ** EIA Average Commercial Natural Gas Prices for 2014. http://www.eia.gov/dnav/ng/ng_pri_sum_a_EPG0_PCS_DMcf_a.htm. EIA prices expressed in $/Mcf (thousand cubic feet). Prices here converted to $/MMBtu (1 Mcf=1.028 MMBtu).
B59: *** EIA Average Industrial Natural Gas Prices for 2014. http://www.eia.gov/dnav/ng/ng_pri_sum_a_EPG0_PIN_DMcf_a.htm. EIA prices expressed in $/Mcf (thousand cubic feet). Prices here converted to $/MMBtu (1 Mcf=1.028 MMBtu).

Sheet Defaults (hidden)
B4: Boiler Fuel Price, $/MMBtu | C4: =VLOOKUP(State,'State Energy Prices'!$B$5:$F$55,5,FALSE) -> 
B5: CHP Fuel Price, $/MMBtu | C5: =VLOOKUP(State,'State Energy Prices'!$B$5:$F$55,5,FALSE) -> 
B6: Average Electric Price, $/kWh | C6: =VLOOKUP(State,'State Energy Prices'!$B$5:$E$55,2,FALSE) -> 
B7: Percent of Average Electric Rate Avoided | C7: 0.9
B8: Site Boiler Efficiency | C8: 0.8
B9: CHP Thermal Utilization | C9: 1
B11: CHP System Type | C11: =HLOOKUP(CHPSize,'CHP Technology Options'!$C$2:$P$12,D11) -> No CHP | D11: 4
B12: Heat Rate, Btu/kWh | C12: =HLOOKUP(CHPSize,'CHP Technology Options'!$C$2:$P$12,D12) -> No CHP | D12: 6
B13: Heat Output, Btu/kWh | C13: =HLOOKUP(CHPSize,'CHP Technology Options'!$C$2:$P$12,D13) -> No CHP | D13: 7
B14: Electric Efficiency, % | C14: =HLOOKUP(CHPSize,'CHP Technology Options'!$C$2:$P$12,D14) -> No CHP | D14: 8
B15: O&M Costs, $/kWh | C15: =HLOOKUP(CHPSize,'CHP Technology Options'!$C$2:$P$12,D15) -> No CHP | D15: 9
B16: CHP Plant Availability | C16: =HLOOKUP(CHPSize,'CHP Technology Options'!$C$2:$P$12,D16) -> No CHP | D16: 10
B17: Power to heat Ratio | C17: =HLOOKUP(CHPSize,'CHP Technology Options'!$C$2:$P$12,D17) -> No CHP | D17: 11
B22: 1 | C22: 5 days/week, 8 hours/day: 2,080 hrs | D22: =52*5*8 -> 2080
B23: 2 | C23: 5 days/week, 16 hours/day: 4,160 hrs | D23: =52*5*16 -> 4160
B24: 3 | C24: 7 days/week, 16 hours/day: 5,840 hrs | D24: 5840
B25: 4 | C25: 7 days/week, 24 hours/day: 8,760 hrs | D25: 8760
B26: 5 | C26: I will enter a value
